[Event "Early-Titled-Tuesday-Blitz-March-05-2024"]
[Site "Chess.com"]
[Date "2024.03.05"]
[Round "6"]
[White "Statham_01"]
[Black "LikeWater"]
[Result "1-0"]
[WhiteElo "2541"]
[BlackElo "2683"]
[TimeControl "180+1"]
[EndTime "9:09:03 PST"]
[Termination "Statham_01 won by checkmate"]

1. e4 {[%clk 0:03:00.9]} 1... c6 {[%clk 0:02:53.6]} 2. d4 {[%clk 0:03:00.7]}
2... d5 {[%clk 0:02:52.9]} 3. f3 {[%clk 0:03:01]} 3... Qb6 {[%clk 0:02:49.2]} 4.
Nc3 {[%clk 0:03:00.6]} 4... e6 {[%clk 0:02:49.1]} 5. a3 {[%clk 0:02:57]} 5...
Nf6 {[%clk 0:02:48.5]} 6. Be3 {[%clk 0:02:53.5]} 6... Be7 {[%clk 0:02:44.3]} 7.
e5 {[%clk 0:02:48.2]} 7... Nfd7 {[%clk 0:02:44.3]} 8. f4 {[%clk 0:02:48.2]} 8...
c5 {[%clk 0:02:43.8]} 9. Nf3 {[%clk 0:02:47.5]} 9... Nc6 {[%clk 0:02:37.9]} 10.
Na4 {[%clk 0:02:28.9]} 10... Qa5+ {[%clk 0:02:36.2]} 11. c3 {[%clk 0:02:28.3]}
11... c4 {[%clk 0:02:29.8]} 12. Be2 {[%clk 0:02:14.1]} 12... f5 {[%clk
0:02:19.2]} 13. exf6 {[%clk 0:01:55.4]} 13... Nxf6 {[%clk 0:02:19.1]} 14. Ne5
{[%clk 0:01:49.7]} 14... Bd7 {[%clk 0:02:17.5]} 15. Nc5 {[%clk 0:01:36.4]} 15...
Bxc5 {[%clk 0:02:11.5]} 16. dxc5 {[%clk 0:01:37.3]} 16... Nxe5 {[%clk 0:01:56]}
17. fxe5 {[%clk 0:01:37.1]} 17... Ne4 {[%clk 0:01:54.9]} 18. O-O {[%clk
0:01:15.2]} 18... Nxc5 {[%clk 0:01:47.5]} 19. Qd4 {[%clk 0:01:14.4]} 19... Nb3
{[%clk 0:01:45.5]} 20. Qh4 {[%clk 0:01:10.6]} 20... Bc8 {[%clk 0:00:52.1]} 21.
Qg5 {[%clk 0:00:26]} 21... Rg8 {[%clk 0:00:41.2]} 22. Qh5+ {[%clk 0:00:21.2]}
22... Kd7 {[%clk 0:00:35]} 23. Qf7+ {[%clk 0:00:18.5]} 23... Kc6 {[%clk
0:00:35.4]} 24. Qxg8 {[%clk 0:00:17.9]} 24... Kb5 {[%clk 0:00:23.3]} 25. Qe8+
{[%clk 0:00:15.9]} 25... Ka6 {[%clk 0:00:23.7]} 26. Rad1 {[%clk 0:00:14]} 26...
Nc5 {[%clk 0:00:16.6]} 27. Bxc5 {[%clk 0:00:08.7]} 27... Qxc5+ {[%clk
0:00:17.5]} 28. Kh1 {[%clk 0:00:09.3]} 28... Qe3 {[%clk 0:00:14.9]} 29. Rfe1
{[%clk 0:00:07.7]} 29... Qb6 {[%clk 0:00:12.7]} 30. b3 {[%clk 0:00:07.9]} 30...
Qxb3 {[%clk 0:00:12.2]} 31. Rb1 {[%clk 0:00:07.9]} 31... Qxc3 {[%clk 0:00:12.2]}
32. Qb5# {[%clk 0:00:07.4]} 1-0

[Event "Early-Titled-Tuesday-Blitz-March-05-2024"]
[Site "Chess.com"]
[Date "2024.03.05"]
[Round "6"]
[White "AlexeiShirov"]
[Black "AldokhinIvan"]
[Result "1-0"]
[WhiteElo "2844"]
[BlackElo "2665"]
[TimeControl "180+1"]
[EndTime "9:09:04 PST"]
[Termination "AlexeiShirov won on time"]

1. e4 {[%clk 0:03:00.9]} 1... c5 {[%clk 0:02:58.4]} 2. Nf3 {[%clk 0:03:00.7]}
2... e6 {[%clk 0:02:57.7]} 3. d4 {[%clk 0:03:00.6]} 3... cxd4 {[%clk 0:02:58.3]}
4. Nxd4 {[%clk 0:03:01.2]} 4... a6 {[%clk 0:02:58.9]} 5. c4 {[%clk 0:02:59.8]}
5... Qc7 {[%clk 0:02:59.3]} 6. Nc3 {[%clk 0:02:58.3]} 6... Nf6 {[%clk
0:02:59.9]} 7. a3 {[%clk 0:02:55.7]} 7... d6 {[%clk 0:03:00.1]} 8. Be3 {[%clk
0:02:54.3]} 8... b6 {[%clk 0:03:00.4]} 9. Rc1 {[%clk 0:02:52.1]} 9... Bb7 {[%clk
0:02:59.6]} 10. f3 {[%clk 0:02:50.5]} 10... Be7 {[%clk 0:02:59.8]} 11. b4 {[%clk
0:02:42.7]} 11... O-O {[%clk 0:02:58.8]} 12. Be2 {[%clk 0:02:37.6]} 12... Nbd7
{[%clk 0:02:59]} 13. g4 {[%clk 0:02:35]} 13... Rac8 {[%clk 0:02:12.2]} 14. g5
{[%clk 0:02:33.2]} 14... Ne8 {[%clk 0:02:12.2]} 15. f4 {[%clk 0:02:27.8]} 15...
Qb8 {[%clk 0:02:11]} 16. f5 {[%clk 0:02:25.8]} 16... exf5 {[%clk 0:01:55.4]} 17.
Nxf5 {[%clk 0:02:24.1]} 17... Bd8 {[%clk 0:01:56.1]} 18. O-O {[%clk 0:02:20.6]}
18... Ne5 {[%clk 0:01:51.9]} 19. Nd5 {[%clk 0:02:20.3]} 19... Bxd5 {[%clk
0:01:34]} 20. Qxd5 {[%clk 0:02:19.9]} 20... Ng6 {[%clk 0:01:04.3]} 21. c5 {[%clk
0:02:03.6]} 21... dxc5 {[%clk 0:00:55]} 22. bxc5 {[%clk 0:02:03.1]} 22... Nc7
{[%clk 0:00:44.8]} 23. Qd6 {[%clk 0:02:01.2]} 23... b5 {[%clk 0:00:32.8]} 24. h4
{[%clk 0:01:55.3]} 24... Ne6 {[%clk 0:00:32.4]} 25. Qxb8 {[%clk 0:01:43.2]}
25... Rxb8 {[%clk 0:00:32]} 26. Rfd1 {[%clk 0:01:42.9]} 26... Bc7 {[%clk
0:00:29]} 27. Rd7 {[%clk 0:01:39.1]} 27... Ne5 {[%clk 0:00:23.9]} 28. Rd5 {[%clk
0:01:29.4]} 28... Nc6 {[%clk 0:00:19.7]} 29. Rcd1 {[%clk 0:01:22.6]} 29... a5
{[%clk 0:00:19.7]} 30. Nd6 {[%clk 0:01:14.7]} 30... b4 {[%clk 0:00:18.5]} 31. a4
{[%clk 0:01:13.7]} 31... b3 {[%clk 0:00:15.7]} 32. Bb5 {[%clk 0:01:13.5]} 32...
Nb4 {[%clk 0:00:11.2]} 33. R5d2 {[%clk 0:01:13.3]} 33... Nc2 {[%clk 0:00:09.6]}
34. Bf2 {[%clk 0:01:12.3]} 34... Nf4 {[%clk 0:00:09.7]} 35. Bg3 {[%clk
0:01:01.4]} 35... Ne6 {[%clk 0:00:06.2]} 36. Bf2 {[%clk 0:00:59.1]} 36... Nf4
{[%clk 0:00:06.5]} 37. Kf1 {[%clk 0:00:58.9]} 37... f6 {[%clk 0:00:03.4]} 38.
Bc4+ {[%clk 0:00:57.9]} 38... Kh8 {[%clk 0:00:03.7]} 39. Nf7+ {[%clk 0:00:53.9]}
39... Rxf7 {[%clk 0:00:03.4]} 40. Bxf7 {[%clk 0:00:53.5]} 40... b2 {[%clk
0:00:03.8]} 41. Ba2 {[%clk 0:00:52.8]} 41... Nb4 {[%clk 0:00:03.1]} 42. Bb1
{[%clk 0:00:52.1]} 42... fxg5 {[%clk 0:00:03.4]} 43. Rd7 {[%clk 0:00:50.5]}
43... Ne6 {[%clk 0:00:03.5]} 44. Re7 {[%clk 0:00:48.1]} 1-0

[Event "Early-Titled-Tuesday-Blitz-March-05-2024"]
[Site "Chess.com"]
[Date "2024.03.05"]
[Round "6"]
[White "Predator0608"]
[Black "alexrustemov"]
[Result "0-1"]
[WhiteElo "2548"]
[BlackElo "2805"]
[TimeControl "180+1"]
[EndTime "9:09:04 PST"]
[Termination "alexrustemov won by resignation"]

1. e4 {[%clk 0:02:42.2]} 1... e6 {[%clk 0:02:58.5]} 2. d4 {[%clk 0:02:42.2]}
2... d5 {[%clk 0:02:58.8]} 3. Nc3 {[%clk 0:02:42.7]} 3... dxe4 {[%clk
0:02:59.3]} 4. Nxe4 {[%clk 0:02:43.6]} 4... Bd7 {[%clk 0:02:59.7]} 5. Nf3 {[%clk
0:02:43.7]} 5... Bc6 {[%clk 0:03:00]} 6. Bd3 {[%clk 0:02:43]} 6... Nd7 {[%clk
0:03:00.5]} 7. c3 {[%clk 0:02:39.5]} 7... Ngf6 {[%clk 0:03:00.8]} 8. Nxf6+
{[%clk 0:02:40.1]} 8... Nxf6 {[%clk 0:03:01.3]} 9. O-O {[%clk 0:02:40.8]} 9...
Bxf3 {[%clk 0:02:59.7]} 10. Qxf3 {[%clk 0:02:40.5]} 10... Qd5 {[%clk 0:03:00.2]}
11. Qxd5 {[%clk 0:02:37.3]} 11... Nxd5 {[%clk 0:02:59.6]} 12. Be4 {[%clk
0:02:32.7]} 12... c6 {[%clk 0:02:58.2]} 13. a4 {[%clk 0:02:30.2]} 13... a5
{[%clk 0:02:55.3]} 14. Re1 {[%clk 0:02:28.2]} 14... Be7 {[%clk 0:02:51]} 15. Kf1
{[%clk 0:02:28.1]} 15... Kd7 {[%clk 0:02:40.6]} 16. Ke2 {[%clk 0:02:24.8]} 16...
h5 {[%clk 0:02:34.8]} 17. Kd3 {[%clk 0:02:15.2]} 17... g5 {[%clk 0:02:32]} 18.
b3 {[%clk 0:02:07.3]} 18... g4 {[%clk 0:02:25.4]} 19. Bxd5 {[%clk 0:02:02.4]}
19... exd5 {[%clk 0:02:21.1]} 20. Bf4 {[%clk 0:02:00.1]} 20... Rae8 {[%clk
0:02:14.1]} 21. Ra2 {[%clk 0:01:56.2]} 21... Bd8 {[%clk 0:02:04.8]} 22. Rae2
{[%clk 0:01:55.3]} 22... Rxe2 {[%clk 0:02:04.4]} 23. Rxe2 {[%clk 0:01:56.2]}
23... Re8 {[%clk 0:01:58.3]} 24. c4 {[%clk 0:01:43]} 24... Rxe2 {[%clk
0:01:55.3]} 25. Kxe2 {[%clk 0:01:42.6]} 25... Ke6 {[%clk 0:01:33.9]} 26. Kd3
{[%clk 0:01:40.7]} 26... Kf5 {[%clk 0:01:31.4]} 27. Bb8 {[%clk 0:01:37]} 27...
Ke6 {[%clk 0:01:23.9]} 28. Bf4 {[%clk 0:01:32.5]} 28... f6 {[%clk 0:01:22.5]}
29. Bb8 {[%clk 0:01:30.7]} 29... Be7 {[%clk 0:01:20.9]} 30. Bf4 {[%clk
0:01:17.6]} 30... Kf5 {[%clk 0:01:17.7]} 31. Bd2 {[%clk 0:01:12.3]} 31... Bd8
{[%clk 0:01:11.8]} 32. h3 {[%clk 0:00:52.1]} 32... Bc7 {[%clk 0:01:10.8]} 33.
Bc1 {[%clk 0:00:37]} 33... Bd6 {[%clk 0:01:07]} 34. Bd2 {[%clk 0:00:36.5]} 34...
Bb4 {[%clk 0:01:04.2]} 35. Bxb4 {[%clk 0:00:25.7]} 35... axb4 {[%clk 0:01:05.1]}
36. cxd5 {[%clk 0:00:26.3]} 36... cxd5 {[%clk 0:01:04.2]} 37. Ke3 {[%clk
0:00:24.1]} 37... b6 {[%clk 0:00:49.5]} 38. f3 {[%clk 0:00:05.5]} 38... gxh3
{[%clk 0:00:45.9]} 39. gxh3 {[%clk 0:00:05.4]} 39... Kg5 {[%clk 0:00:46.4]} 40.
Kf2 {[%clk 0:00:05.7]} 40... Kf4 {[%clk 0:00:45.2]} 41. h4 {[%clk 0:00:05.9]}
41... f5 {[%clk 0:00:45.4]} 42. Ke2 {[%clk 0:00:06.3]} 42... Kg3 {[%clk
0:00:45.2]} 43. Ke3 {[%clk 0:00:07.2]} 43... f4+ {[%clk 0:00:45]} 44. Ke2 {[%clk
0:00:07.6]} 44... Kxh4 {[%clk 0:00:44.4]} 45. Kf2 {[%clk 0:00:08.5]} 45... Kh3
{[%clk 0:00:44.5]} 46. Kf1 {[%clk 0:00:08.1]} 46... Kg3 {[%clk 0:00:44.5]} 0-1

[Event "Early-Titled-Tuesday-Blitz-March-05-2024"]
[Site "Chess.com"]
[Date "2024.03.05"]
[Round "6"]
[White "rdarruda"]
[Black "ElVital"]
[Result "1-0"]
[WhiteElo "2517"]
[BlackElo "2342"]
[TimeControl "180+1"]
[EndTime "9:09:04 PST"]
[Termination "rdarruda won by resignation"]

1. Nf3 {[%clk 0:03:00.9]} 1... c5 {[%clk 0:02:59.7]} 2. c4 {[%clk 0:03:00.3]}
2... g6 {[%clk 0:02:59]} 3. Nc3 {[%clk 0:03:00.1]} 3... Bg7 {[%clk 0:02:58.9]}
4. g3 {[%clk 0:03:00.3]} 4... e6 {[%clk 0:02:57.3]} 5. Bg2 {[%clk 0:03:00.3]}
5... Ne7 {[%clk 0:02:57.9]} 6. O-O {[%clk 0:03:00.2]} 6... O-O {[%clk
0:02:57.5]} 7. d4 {[%clk 0:02:59.7]} 7... d6 {[%clk 0:02:56.4]} 8. dxc5 {[%clk
0:02:56.8]} 8... dxc5 {[%clk 0:02:56.3]} 9. Qxd8 {[%clk 0:02:56.7]} 9... Rxd8
{[%clk 0:02:57.2]} 10. Be3 {[%clk 0:02:56.3]} 10... Na6 {[%clk 0:02:38.1]} 11.
Rad1 {[%clk 0:02:36.4]} 11... Bd7 {[%clk 0:02:36.7]} 12. Bg5 {[%clk 0:02:18.7]}
12... Kf8 {[%clk 0:02:33.9]} 13. Bf4 {[%clk 0:02:16.3]} 13... Bc6 {[%clk
0:02:28.5]} 14. Be5 {[%clk 0:02:15.1]} 14... f6 {[%clk 0:02:16.9]} 15. Bf4
{[%clk 0:02:14.7]} 15... e5 {[%clk 0:02:08]} 16. Bc1 {[%clk 0:02:14.2]} 16...
Kf7 {[%clk 0:02:05.2]} 17. Nd2 {[%clk 0:02:09.7]} 17... f5 {[%clk 0:01:59.6]}
18. b3 {[%clk 0:02:07.4]} 18... e4 {[%clk 0:01:58.3]} 19. Bb2 {[%clk 0:02:07.7]}
19... Kg8 {[%clk 0:01:50.7]} 20. Ndb1 {[%clk 0:02:04.5]} 20... Nb4 {[%clk
0:01:46.4]} 21. a3 {[%clk 0:02:00.4]} 21... Na2 {[%clk 0:01:45.7]} 22. Rxd8+
{[%clk 0:01:40.9]} 22... Rxd8 {[%clk 0:01:46.6]} 23. Nd1 {[%clk 0:01:40.1]}
23... b5 {[%clk 0:01:31.7]} 24. Bxg7 {[%clk 0:01:36.8]} 24... Kxg7 {[%clk
0:01:32.6]} 25. Ndc3 {[%clk 0:01:25.9]} 25... Nxc3 {[%clk 0:01:30.4]} 26. Nxc3
{[%clk 0:01:26.8]} 26... b4 {[%clk 0:01:30.6]} 27. axb4 {[%clk 0:01:20]} 27...
cxb4 {[%clk 0:01:31.5]} 28. Nb1 {[%clk 0:01:15.8]} 28... a5 {[%clk 0:01:26.9]}
29. Rc1 {[%clk 0:01:15.2]} 29... a4 {[%clk 0:01:20.8]} 30. bxa4 {[%clk
0:01:14.5]} 30... Bxa4 {[%clk 0:01:21.7]} 31. e3 {[%clk 0:01:08.1]} 31... Nc6
{[%clk 0:01:00.9]} 32. c5 {[%clk 0:01:07.5]} 32... Bb5 {[%clk 0:00:45.4]} 33.
Bf1 {[%clk 0:01:04.5]} 33... Bxf1 {[%clk 0:00:44.2]} 34. Kxf1 {[%clk 0:01:05.4]}
34... Rd3 {[%clk 0:00:38.5]} 35. Ke2 {[%clk 0:01:04.8]} 35... Kf6 {[%clk
0:00:35.4]} 36. Nd2 {[%clk 0:01:02]} 36... Ke6 {[%clk 0:00:32]} 37. f3 {[%clk
0:01:01.9]} 37... Kd5 {[%clk 0:00:31.2]} 38. fxe4+ {[%clk 0:01:01.4]} 38... fxe4
{[%clk 0:00:32.1]} 39. Nc4 {[%clk 0:00:53]} 39... Rc3 {[%clk 0:00:27.3]} 40.
Nb6+ {[%clk 0:00:48.6]} 40... Ke5 {[%clk 0:00:24.1]} 41. Rxc3 {[%clk 0:00:46.9]}
41... bxc3 {[%clk 0:00:25]} 42. Kd1 {[%clk 0:00:47.1]} 42... Nb4 {[%clk
0:00:20.2]} 43. Na4 {[%clk 0:00:41.9]} 43... Kd5 {[%clk 0:00:16.3]} 44. Nxc3+
{[%clk 0:00:40.7]} 44... Kxc5 {[%clk 0:00:15.3]} 45. Nxe4+ {[%clk 0:00:41.3]}
45... Kd5 {[%clk 0:00:15.6]} 46. Nf6+ {[%clk 0:00:41.4]} 46... Ke5 {[%clk
0:00:14.2]} 47. Nxh7 {[%clk 0:00:42.3]} 47... Ke4 {[%clk 0:00:13.7]} 48. Ke2
{[%clk 0:00:41.2]} 48... Nd5 {[%clk 0:00:13.1]} 49. Ng5+ {[%clk 0:00:41.5]}
49... Kf5 {[%clk 0:00:13.4]} 50. e4+ {[%clk 0:00:41.1]} 1-0

[Event "Early-Titled-Tuesday-Blitz-March-05-2024"]
[Site "Chess.com"]
[Date "2024.03.05"]
[Round "6"]
[White "chess94cu"]
[Black "MasterKroket"]
[Result "0-1"]
[WhiteElo "2639"]
[BlackElo "2497"]
[TimeControl "180+1"]
[EndTime "9:09:05 PST"]
[Termination "MasterKroket won by checkmate"]

1. e4 {[%clk 0:03:00.9]} 1... e5 {[%clk 0:02:59.3]} 2. Nf3 {[%clk 0:03:01]} 2...
Nc6 {[%clk 0:02:59.6]} 3. Bc4 {[%clk 0:03:01.3]} 3... Nf6 {[%clk 0:02:59.7]} 4.
Ng5 {[%clk 0:03:00.5]} 4... d5 {[%clk 0:03:00]} 5. exd5 {[%clk 0:03:01.4]} 5...
Na5 {[%clk 0:02:59.7]} 6. Bb5+ {[%clk 0:03:01.3]} 6... c6 {[%clk 0:03:00]} 7.
dxc6 {[%clk 0:03:02.2]} 7... bxc6 {[%clk 0:03:00]} 8. Be2 {[%clk 0:03:02.9]}
8... h6 {[%clk 0:02:57.6]} 9. Nh3 {[%clk 0:03:03.1]} 9... Bc5 {[%clk 0:02:54.1]}
10. Nc3 {[%clk 0:03:01.2]} 10... O-O {[%clk 0:02:52.8]} 11. d3 {[%clk
0:03:01.8]} 11... Rb8 {[%clk 0:02:45.8]} 12. a3 {[%clk 0:02:56.4]} 12... Bd4
{[%clk 0:02:43.3]} 13. Ng1 {[%clk 0:02:53.6]} 13... c5 {[%clk 0:02:40.8]} 14.
Nf3 {[%clk 0:02:52.9]} 14... Re8 {[%clk 0:02:26.6]} 15. O-O {[%clk 0:02:51.7]}
15... Be6 {[%clk 0:02:21.2]} 16. Nxd4 {[%clk 0:02:26.8]} 16... exd4 {[%clk
0:02:15.6]} 17. Ne4 {[%clk 0:02:26.8]} 17... Nxe4 {[%clk 0:02:15.9]} 18. dxe4
{[%clk 0:02:27.7]} 18... c4 {[%clk 0:02:14.3]} 19. f4 {[%clk 0:02:02.4]} 19...
f5 {[%clk 0:02:10.2]} 20. exf5 {[%clk 0:01:40.3]} 20... Bxf5 {[%clk 0:02:09.7]}
21. Bd2 {[%clk 0:01:41]} 21... d3 {[%clk 0:02:07.3]} 22. cxd3 {[%clk 0:01:40.3]}
22... cxd3 {[%clk 0:02:06.4]} 23. Bg4 {[%clk 0:01:40.7]} 23... Bxg4 {[%clk
0:01:58.1]} 24. Qxg4 {[%clk 0:01:41.6]} 24... Rxb2 {[%clk 0:01:58.2]} 25. Bc3
{[%clk 0:01:40]} 25... Rb7 {[%clk 0:01:57.2]} 26. f5 {[%clk 0:01:28.3]} 26...
Qc7 {[%clk 0:01:29.8]} 27. Bxa5 {[%clk 0:01:00.4]} 27... Qxa5 {[%clk 0:01:28.3]}
28. f6 {[%clk 0:01:01.1]} 28... Qd5 {[%clk 0:01:13]} 29. Rab1 {[%clk 0:00:49.6]}
29... Rf7 {[%clk 0:01:10.3]} 30. Rbd1 {[%clk 0:00:43.2]} 30... Ref8 {[%clk
0:00:59.3]} 31. Rf3 {[%clk 0:00:29.2]} 31... d2 {[%clk 0:00:54.1]} 32. fxg7
{[%clk 0:00:20.8]} 32... Re8 {[%clk 0:00:50.2]} 33. Rxf7 {[%clk 0:00:19.6]}
33... Qxf7 {[%clk 0:00:32.9]} 34. h3 {[%clk 0:00:17.6]} 34... Re1+ {[%clk
0:00:29.5]} 35. Kh2 {[%clk 0:00:17.8]} 35... Qc7+ {[%clk 0:00:22.5]} 36. g3
{[%clk 0:00:17.8]} 36... Qc6 {[%clk 0:00:17.8]} 37. Rxd2 {[%clk 0:00:01.8]}
37... Qh1# {[%clk 0:00:17.4]} 0-1

[Event "Early-Titled-Tuesday-Blitz-March-05-2024"]
[Site "Chess.com"]
[Date "2024.03.05"]
[Round "6"]
[White "only_strong_moves"]
[Black "AradNazari"]
[Result "1-0"]
[WhiteElo "2584"]
[BlackElo "2824"]
[TimeControl "180+1"]
[EndTime "9:09:06 PST"]
[Termination "only_strong_moves won by resignation"]

1. e4 {[%clk 0:03:00.9]} 1... c6 {[%clk 0:02:59.6]} 2. d4 {[%clk 0:03:00.4]}
2... Na6 {[%clk 0:03:00.3]} 3. Nc3 {[%clk 0:03:01.3]} 3... Nc7 {[%clk
0:03:00.7]} 4. Nf3 {[%clk 0:03:01.7]} 4... d5 {[%clk 0:03:01]} 5. e5 {[%clk
0:03:01.6]} 5... h6 {[%clk 0:02:56.4]} 6. Be2 {[%clk 0:03:02.5]} 6... Bf5 {[%clk
0:02:56.7]} 7. Be3 {[%clk 0:02:59.6]} 7... g5 {[%clk 0:02:53.3]} 8. a3 {[%clk
0:02:53.7]} 8... Qd7 {[%clk 0:02:52.9]} 9. Nd2 {[%clk 0:02:48]} 9... e6 {[%clk
0:02:44.6]} 10. Nb3 {[%clk 0:02:47.6]} 10... Ne7 {[%clk 0:02:32.2]} 11. h4
{[%clk 0:02:45]} 11... gxh4 {[%clk 0:02:31.2]} 12. Rxh4 {[%clk 0:02:45.9]} 12...
Bg6 {[%clk 0:02:27]} 13. g4 {[%clk 0:02:44.3]} 13... Nc8 {[%clk 0:02:23.8]} 14.
Qd2 {[%clk 0:02:41.9]} 14... Nb6 {[%clk 0:02:23.9]} 15. Nc5 {[%clk 0:02:27.3]}
15... Qc8 {[%clk 0:02:13.9]} 16. f4 {[%clk 0:02:24.1]} 16... Nc4 {[%clk
0:02:11.1]} 17. Bxc4 {[%clk 0:02:23.8]} 17... dxc4 {[%clk 0:02:11.2]} 18. O-O-O
{[%clk 0:02:20.8]} 18... Nd5 {[%clk 0:02:07.1]} 19. N5e4 {[%clk 0:02:04.1]}
19... Be7 {[%clk 0:01:58]} 20. Nxd5 {[%clk 0:01:53.4]} 20... cxd5 {[%clk
0:01:48.7]} 21. Nf6+ {[%clk 0:01:53.9]} 21... Bxf6 {[%clk 0:01:47.1]} 22. exf6
{[%clk 0:01:54.8]} 22... Qd7 {[%clk 0:01:30.1]} 23. Rdh1 {[%clk 0:01:47.3]}
23... O-O-O {[%clk 0:01:25.3]} 24. Rxh6 {[%clk 0:01:46.8]} 24... Rhg8 {[%clk
0:01:26]} 25. Qb4 {[%clk 0:01:34.1]} 25... b6 {[%clk 0:01:20.1]} 26. a4 {[%clk
0:01:22.9]} 26... Kb7 {[%clk 0:01:17.7]} 27. a5 {[%clk 0:01:22.5]} 27... Rc8
{[%clk 0:01:02.3]} 28. Bd2 {[%clk 0:01:16.9]} 28... Rc7 {[%clk 0:00:45.8]} 29.
Rh8 {[%clk 0:01:14.5]} 29... Rcc8 {[%clk 0:00:42.5]} 30. Rxg8 {[%clk 0:00:55.6]}
30... Rxg8 {[%clk 0:00:43.4]} 31. f5 {[%clk 0:00:20.1]} 31... exf5 {[%clk
0:00:41.3]} 32. Re1 {[%clk 0:00:21]} 32... Re8 {[%clk 0:00:09.4]} 33. Rxe8
{[%clk 0:00:11]} 33... Qxe8 {[%clk 0:00:10.3]} 34. Qd6 {[%clk 0:00:11.2]} 34...
Qc6 {[%clk 0:00:06.9]} 35. a6+ {[%clk 0:00:09.8]} 1-0

[Event "Early-Titled-Tuesday-Blitz-March-05-2024"]
[Site "Chess.com"]
[Date "2024.03.05"]
[Round "6"]
[White "Austen48"]
[Black "VinzentSpitzl"]
[Result "1-0"]
[WhiteElo "2305"]
[BlackElo "2524"]
[TimeControl "180+1"]
[EndTime "9:09:06 PST"]
[Termination "Austen48 won on time"]

1. d4 {[%clk 0:03:00.9]} 1... Nf6 {[%clk 0:02:59.2]} 2. c4 {[%clk 0:03:00.3]}
2... e6 {[%clk 0:02:59.3]} 3. Nc3 {[%clk 0:02:58.9]} 3... d5 {[%clk 0:02:59.4]}
4. cxd5 {[%clk 0:02:58.2]} 4... exd5 {[%clk 0:02:58.9]} 5. Bg5 {[%clk 0:02:58]}
5... Be7 {[%clk 0:02:58.9]} 6. e3 {[%clk 0:02:57.7]} 6... h6 {[%clk 0:02:58.7]}
7. Bh4 {[%clk 0:02:56.4]} 7... O-O {[%clk 0:02:58.2]} 8. Qc2 {[%clk 0:02:56.4]}
8... Re8 {[%clk 0:02:56.5]} 9. Bd3 {[%clk 0:02:56.1]} 9... c6 {[%clk 0:02:56.1]}
10. Nge2 {[%clk 0:02:51.1]} 10... Nbd7 {[%clk 0:02:56.2]} 11. O-O {[%clk
0:02:48.3]} 11... Ne4 {[%clk 0:02:56.3]} 12. Bxe7 {[%clk 0:02:37.2]} 12... Qxe7
{[%clk 0:02:54.9]} 13. Bxe4 {[%clk 0:02:34.1]} 13... dxe4 {[%clk 0:02:54.8]} 14.
d5 {[%clk 0:02:27.8]} 14... Nf6 {[%clk 0:02:43.5]} 15. dxc6 {[%clk 0:02:22.7]}
15... bxc6 {[%clk 0:02:43.5]} 16. Rad1 {[%clk 0:02:21.6]} 16... Ba6 {[%clk
0:02:41.2]} 17. Qa4 {[%clk 0:02:17.3]} 17... Bb5 {[%clk 0:02:24.6]} 18. Nxb5
{[%clk 0:02:16.3]} 18... cxb5 {[%clk 0:02:25.5]} 19. Qxb5 {[%clk 0:02:14.3]}
19... Rab8 {[%clk 0:02:25.6]} 20. Qa4 {[%clk 0:02:03.7]} 20... Rxb2 {[%clk
0:02:24.8]} 21. Nf4 {[%clk 0:01:58.4]} 21... Rc8 {[%clk 0:01:50.2]} 22. h3
{[%clk 0:01:50.9]} 22... Rcc2 {[%clk 0:01:45.3]} 23. a3 {[%clk 0:01:39.2]} 23...
Ra2 {[%clk 0:01:36.7]} 24. Nd5 {[%clk 0:01:18]} 24... Nxd5 {[%clk 0:01:36.3]}
25. Rxd5 {[%clk 0:01:18]} 25... Qf6 {[%clk 0:01:15.5]} 26. Qe8+ {[%clk
0:01:14.8]} 26... Kh7 {[%clk 0:01:15.6]} 27. Qxe4+ {[%clk 0:01:15.2]} 27... g6
{[%clk 0:01:16.2]} 28. Rd7 {[%clk 0:00:46.7]} 28... Rxf2 {[%clk 0:01:09.2]} 29.
Rxf2 {[%clk 0:00:46.7]} 29... Qxf2+ {[%clk 0:00:56.8]} 30. Kh2 {[%clk
0:00:45.8]} 30... Rxa3 {[%clk 0:00:46]} 31. Qd5 {[%clk 0:00:38.4]} 31... Kg7
{[%clk 0:00:45.1]} 32. Qd6 {[%clk 0:00:22.5]} 32... Qxe3 {[%clk 0:00:37.7]} 33.
Rd8 {[%clk 0:00:17.9]} 33... Qf4+ {[%clk 0:00:04]} 34. Qxf4 {[%clk 0:00:14.8]}
1-0